Workbook

Sheet Dataset
B2: Sales and Profit Calculation Data of Starlight AutoMall
B4: Car Names | C4: Car Price | D4: Number of Sales | E4: Income | F4: Maintenance Cost | G4: Profit
B5: Toyota | C5: 300000 | D5: 25 | E5: =D5*C5 -> 7500000 | F5: 25000 | G5: =E5-F5 -> 7475000
B6: Ford | C6: 400000 | D6: 26 | E6: 10400000 | F6: 26000 | G6: =E6-F6 -> 10374000
B7: Honda | C7: 650000 | D7: 78 | E7: 50700000 | F7: 28000 | G7: 50672000
B8: Nissan | C8: 750000 | D8: 36 | E8: 27000000 | F8: 29000 | G8: 26971000
B9: Jeep | C9: 650555 | D9: 8 | E9: 5204440 | F9: 84000 | G9: 5120440
B10: Kia | C10: 80000 | D10: 65 | E10: 5200000 | F10: 10000 | G10: 5190000
B11: BMW | C11: 1000000 | D11: 9 | E11: 9000000 | F11: 65000 | G11: 8935000

Sheet Select cells manually
B2: Sales and Profit Calculation Data of Starlight AutoMall
B4: Car Names | C4: Car Price | D4: Number of Sales | E4: Income | F4: Maintenance Cost | G4: Profit
B5: Toyota | C5: 300000 | D5: 25 | E5: =D5*C5 -> 7500000 | F5: 25000 | G5: =E5-F5 -> 7475000
B6: Ford | C6: 400000 | D6: 26 | E6: 10400000 | F6: 26000 | G6: =E6-F6 -> 10374000
B7: Honda | C7: 650000 | D7: 78 | E7: 50700000 | F7: 28000 | G7: 50672000
B8: Nissan | C8: 750000 | D8: 36 | E8: 27000000 | F8: 29000 | G8: 26971000
B9: Jeep | C9: 650555 | D9: 8 | E9: 5204440 | F9: 84000 | G9: 5120440
B10: Kia | C10: 80000 | D10: 65 | E10: 5200000 | F10: 10000 | G10: 5190000
B11: BMW | C11: 1000000 | D11: 9 | E11: 9000000 | F11: 65000 | G11: 8935000

Sheet Hide Selected Cells Auto
B2: Sales and Profit Calculation Data of Starlight AutoMall
B4: Car Names | C4: Car Price | D4: Number of Sales | E4: Income | F4: Maintenance Cost | G4: Profit
B5: Toyota | C5: 300000 | D5: 25 | E5: =D5*C5 -> 7500000 | F5: 25000 | G5: =E5-F5 -> 7475000
B6: Ford | C6: 400000 | D6: 26 | E6: 10400000 | F6: 26000 | G6: =E6-F6 -> 10374000
B7: Honda | C7: 650000 | D7: 78 | E7: 50700000 | F7: 28000 | G7: 50672000
B8: Nissan | C8: 750000 | D8: 36 | E8: 27000000 | F8: 29000 | G8: 26971000
B9: Jeep | C9: 650555 | D9: 8 | E9: 5204440 | F9: 84000 | G9: 5120440
B10: Kia | C10: 80000 | D10: 65 | E10: 5200000 | F10: 10000 | G10: 5190000
B11: BMW | C11: 1000000 | D11: 9 | E11: 9000000 | F11: 65000 | G11: 8935000

Sheet Sheet1 (3)
B2: Sales and Profit Calculation Data of Starlight AutoMall
B4: Car Names | C4: Car Price | D4: Number of Sales | E4: Income | F4: Maintenance Cost | G4: Profit
B5: Toyota | C5: 300000 | D5: 25 | E5: =D5*C5 -> 7500000 | F5: 25000 | G5: =E5-F5 -> 7475000
B6: Ford | C6: 400000 | D6: 26 | E6: 10400000 | F6: 26000 | G6: =E6-F6 -> 10374000
B7: Honda | C7: 650000 | D7: 78 | E7: 50700000 | F7: 28000 | G7: 50672000
B8: Nissan | C8: 750000 | D8: 36 | E8: 27000000 | F8: 29000 | G8: 26971000
B9: Jeep | C9: 650555 | D9: 8 | E9: 5204440 | F9: 84000 | G9: 5120440
B10: Kia | C10: 80000 | D10: 65 | E10: 5200000 | F10: 10000 | G10: 5190000
B11: BMW | C11: 1000000 | D11: 9 | E11: 9000000 | F11: 65000 | G11: 8935000

Sheet Unprotected sheet
B2: Sales and Profit Calculation Data of Starlight AutoMall
B4: Car Names | C4: Car Price | D4: Number of Sales | E4: Income | F4: Maintenance Cost | G4: Profit
B5: Toyota | C5: 300000 | D5: 25 | E5: =D5*C5 -> 7500000 | F5: 25000 | G5: 7475000
B6: Ford | C6: 400000 | D6: 26 | E6: =D6*C6 -> 10400000 | F6: 26000 | G6: =E6-F6 -> 10374000
B7: Honda | C7: 650000 | D7: 78 | E7: =D7*C7 -> 50700000 | F7: 28000 | G7: =E7-F7 -> 50672000
B8: Nissan | C8: 750000 | D8: 36 | E8: =D8*C8 -> 27000000 | F8: 29000 | G8: =E8-F8 -> 26971000
B9: Jeep | C9: 650555 | D9: 8 | E9: =D9*C9 -> 5204440 | F9: 84000 | G9: =E9-F9 -> 5120440
B10: Kia | C10: 80000 | D10: 65 | E10: =D10*C10 -> 5200000 | F10: 10000 | G10: =E10-F10 -> 5190000
B11: BMW | C11: 1000000 | D11: 9 | E11: =D11*C11 -> 9000000 | F11: 65000 | G11: =E11-F11 -> 8935000

Sheet Sheet6
B2: How to Hide Formula in Excel
B4: Store | C4: Income | D4: Expense | E4: Profit
B5: GoodHoods | C5: 45000 | D5: 19000 | E5: =C5-D5 -> 26000
B6: Harrods | C6: 35620 | D6: 26596 | E6: =C6-D6 -> 9024
B7: Primark | C7: 45696 | D7: 34569 | E7: 11127
B8: Bottletop | C8: 65859 | D8: 54648 | E8: 11211
B9: Arket | C9: 55696 | D9: 48759 | E9: 6937
B10: Ted Baker | C10: 27956 | D10: 22569 | E10: 5387
B11: Oakley | C11: 29689 | D11: 20156 | E11: 9533
B12: Dunkin | C12: 13256 | D12: 17563 | E12: -4307
B13: Taco Bell | C13: 19236 | D13: 18236 | E13: 1000
B14: Walgreens | C14: 56895 | D14: 45896 | E14: 10999
